Workbook

Sheet Main
A1: TOOL FOR LONG-RANGE EDUCATOR COST PROJECTIONS
A2: Last date at which the design (as opposed to the data) of this tool was changed: | I2: 2022-12-07
A3: Date on which the scenario displayed below was last changed: | I3: 2022-12-07
A4: Name of this scenario: | C4: Constant educators scenario with 2018-2019 attrition and joining patterns (can easily be changed to alternative workforce increase scenarios of 5.6%, 6.2% and 15.8%)
A32: INPUT DATA
A33: Year
B38: What is the base year (the year for which the start data applies)? | H38: 2021
B39: The maximum year in the scenario is thus... | H39: =startyear+50 -> 2071
A40: Educators by notch code, age and category for base year
A49: Notch code and notch value
A58: Entry levels and ceilings in the notch structure
A71: Notch codes | F71: Notch values
C72: Entry | D72: Ceiling | H72: Entry | I72: Ceiling
A73: Teachers | C73: 164 | D73: 325 | F73: Teachers | H73: =SUMIF(Notches!$A$2:$A$500,C73,Notches!$B$2:$B$500) -> 284238 | I73: =SUMIF(Notches!$A$2:$A$500,D73,Notches!$B$2:$B$500) -> 628098
A74: Non-teachers | C74: 209 | D74: 491 | F74: Non-teachers | H74: =SUMIF(Notches!$A$2:$A$500,C74,Notches!$B$2:$B$500) -> 352200 | I74: =SUMIF(Notches!$A$2:$A$500,D74,Notches!$B$2:$B$500) -> 1425018
A84: Educator post projections
A92: Year | D92: =startyear -> 2021 | E92: 2030 | L92: Value immediately below must be 0, 1, 2 or 3. 0 is the 0% increase scenario.
A93: Teachers | D93: =SUMIF(Educators!B2:B15000,1,Educators!D2:D15000) -> 320400 | E93: =D93*IF($L$93=0,1,1+OFFSET($M$93,$L$93-1,0)/100) -> 320400 | L93: 0 | M93: 5.6 | N93: 5.6% increase scenario | Q93: 1
A94: Non-teachers | D94: =SUMIF(Educators!B2:B15000,0,Educators!D2:D15000) -> 85069 | E94: =D94*IF($L$93=0,1,1+OFFSET($M$93,$L$93-1,0)/100) -> 85069 | M94: 6.2 | N94: 6.2% increase | Q94: 2
A95: Total of above | D95: =SUM(D93:D94) -> 405469 | E95: =SUM(E93:E94) -> 405469 | M95: 15.8 | N95: 15.8% increase | Q95: 3
A96: Cost of living adjustments above inflation | L96: AFTER CHANGING THE VALUE ABOVE, REMEMBER TO CHANGE TARGET YEAR IN 'Distribution of joiners across age in two years'
A104: Year | D104: =startyear -> 2021 | E104: 2060
A105: Difference CoL-inflation | D105: 0 | E105: 0
A110: Annual notch increments
A120: Year | D120: =startyear -> 2021 | E120: 2071
A121: Teachers
A122: First level
A123: Number of notches | D123: 3
A124: % of employees | D124: 1 | E124: 1
A125: Second level
A126: Number of notches
A127: % of employees
A128: Third level
A129: Number of notches
A130: % of employees
A131: Must be no more than 100% | D131: =D124+D127+D130 -> 1 | E131: =E124+E127+E130 -> 1
A132: Non-teachers
A133: First level
A134: Number of notches | D134: 3
A135: % of employees | D135: 1 | E135: 1
A136: Second level
A137: Number of notches
A138: % of employees
A139: Third level
A140: Number of notches
A141: % of employees
A142: Must be no more than 100% | D142: =D135+D138+D141 -> 1 | E142: =E135+E138+E141 -> 1
A144: Benefits as a percentage of basic salary
A148: Year | D148: =startyear -> 2021 | E148: 2060
A149: Benefits as a % of basic salary
C150: 21 | D150: 0.406213137 | E150: 0.406213137
C151: 22 | D151: 0.406213137 | E151: 0.406213137
C152: 23 | D152: 0.3886394586 | E152: 0.3886394586
C153: 24 | D153: 0.3731643979 | E153: 0.3731643979
C154: 25 | D154: 0.3634438821 | E154: 0.3634438821
C155: 26 | D155: 0.356051659 | E155: 0.356051659
C156: 27 | D156: 0.3552497992 | E156: 0.3552497992
C157: 28 | D157: 0.3570473454 | E157: 0.3570473454
C158: 29 | D158: 0.3621826222 | E158: 0.3621826222
C159: 30 | D159: 0.3658392714 | E159: 0.3658392714
C160: 31 | D160: 0.3691075363 | E160: 0.3691075363
C161: 32 | D161: 0.3721647169 | E161: 0.3721647169
C162: 33 | D162: 0.3768749533 | E162: 0.3768749533
C163: 34 | D163: 0.3808979505 | E163: 0.3808979505
C164: 35 | D164: 0.3851362486 | E164: 0.3851362486
C165: 36 | D165: 0.3874463635 | E165: 0.3874463635
C166: 37 | D166: 0.3879523439 | E166: 0.3879523439
C167: 38 | D167: 0.3859637415 | E167: 0.3859637415
C168: 39 | D168: 0.3853773051 | E168: 0.3853773051
C169: 40 | D169: 0.38503951 | E169: 0.38503951
C170: 41 | D170: 0.3819473869 | E170: 0.3819473869
C171: 42 | D171: 0.3783292031 | E171: 0.3783292031
C172: 43 | D172: 0.3723612148 | E172: 0.3723612148
C173: 44 | D173: 0.3689688635 | E173: 0.3689688635
C174: 45 | D174: 0.364254543 | E174: 0.364254543
C175: 46 | D175: 0.361272238 | E175: 0.361272238
C176: 47 | D176: 0.3581472472 | E176: 0.3581472472
C177: 48 | D177: 0.3566935618 | E177: 0.3566935618
C178: 49 | D178: 0.3547947746 | E178: 0.3547947746
C179: 50 | D179: 0.3526633926 | E179: 0.3526633926
C180: 51 | D180: 0.3494187914 | E180: 0.3494187914
C181: 52 | D181: 0.3458519724 | E181: 0.3458519724
C182: 53 | D182: 0.3424700818 | E182: 0.3424700818
C183: 54 | D183: 0.3408316906 | E183: 0.3408316906
C184: 55 | D184: 0.3389418057 | E184: 0.3389418057
C185: 56 | D185: 0.3366047287 | E185: 0.3366047287
C186: 57 | D186: 0.3316344971 | E186: 0.3316344971
C187: 58 | D187: 0.3283543438 | E187: 0.3283543438
C188: 59 | D188: 0.3396000545 | E188: 0.3396000545
C189: 60 | D189: 0.3478968085 | E189: 0.3478968085
C190: 61 | D190: 0.357632837 | E190: 0.357632837
C191: 62 | D191: 0.3365598 | E191: 0.3365598
C192: 63 | D192: 0.3278044123 | E192: 0.3278044123
C193: 64 | D193: 0.3791647264 | E193: 0.3791647264
C194: 65 | D194: 0.3791647264 | E194: 0.3791647264
A195: Annual joiner and attrition trends
A210: Joiners
A211: Year | D211: =startyear -> 2021 | E211: 2060
A212: Youth cohort (thousands) | D212: 1000 | E212: 1000
A213: % available to join | D213: 1 | E213: 1
A214: Number of available joiners | D214: =D213*D212*1000 -> 1000000 | E214: =E213*E212*1000 -> 1000000
A216: Distribution of joiners across age in two years | H216: Attrition rate by age in two years
B217: =startyear -> 2021 | C217: 2048 | D217: Raise this year to the left to raise 2030 indicator value. | I217: =startyear -> 2021 | J217: 2060 | L217: Non-teachers leaving initially
A218: 21 | B218: 0.00245025245 | C218: =D218/SUM(D$218:D$261) -> 0.0005253354984 | D218: =B218 -> 0.00245025245 | H218: 21 | I218: 0.2891181081 | J218: =I218 -> 0.2891181081 | L218: =SUMPRODUCT(I218:I261,C478:C521)+C522 -> 6064.070153
A219: 22 | B219: 0.01674339174 | C219: =D219/SUM(D$218:D$261) -> 0.003589792572 | D219: =B219 -> 0.01674339174 | H219: 22 | I219: 0.0943949047 | J219: =I219 -> 0.0943949047
A220: 23 | B220: 0.07087169587 | C220: =D220/SUM(D$218:D$261) -> 0.2144005604 | D220: 1 | H220: 23 | I220: 0.08619514218 | J220: 0.08619514218 | L220: Leavers implied by baseline input values...
A221: 24 | B221: 0.09481734482 | C221: 0.2144005604 | D221: 1 | H221: 24 | I221: 0.07723189705 | J221: 0.07723189705 | L221: =SUMPRODUCT(I218:I227,B478:B487) -> 4196.476918 | M221: Ages 30 and below
A222: 25 | B222: 0.09388921889 | C222: 0.2144005604 | D222: 1 | H222: 25 | I222: 0.0730102943 | J222: 0.0730102943 | L222: =SUMPRODUCT(I228:I261,B488:B521) -> 20904.53472 | M222: Ages 31 and above
A223: 26 | B223: 0.07625482625 | C223: 0.2144005604 | D223: 1 | H223: 26 | I223: 0.06883215753 | J223: 0.06883215753 | L223: =B522 -> 688
A224: 27 | B224: 0.05925155925 | C224: 0.01270356751 | D224: 0.05925155925 | H224: 27 | I224: 0.06567067905 | J224: 0.06567067905 | L224: =SUM(L221:L223) -> 25789.01164
A225: 28 | B225: 0.04807692308 | C225: 0.01030771925 | D225: 0.04807692308 | H225: 28 | I225: 0.0669708612 | J225: 0.0669708612
A226: 29 | B226: 0.03927828928 | C226: 0.008421287231 | D226: 0.03927828928 | H226: 29 | I226: 0.06196564407 | J226: 0.06196564407
A227: 30 | B227: 0.03456340956 | C227: 0.007410414378 | D227: 0.03456340956 | H227: 30 | I227: 0.05520051615 | J227: 0.05520051615
A228: 31 | B228: 0.030999406 | C228: 0.006646290017 | D228: 0.030999406 | H228: 31 | I228: 0.05541252596 | J228: 0.05541252596
A229: 32 | B229: 0.0268042768 | C229: 0.005746851967 | D229: 0.0268042768 | H229: 32 | I229: 0.05702593738 | J229: 0.05702593738
A230: 33 | B230: 0.02487377487 | C230: 0.005332951271 | D230: 0.02487377487 | E230: Indicator values: | H230: 33 | I230: 0.05029419785 | J230: 0.05029419785
A231: 34 | B231: 0.0258019008 | C231: 0.00553194199 | D231: 0.0258019008 | E231: 2022 | F231: =I421-J421 -> 11950 | H231: 34 | I231: 0.05202474367 | J231: 0.05202474367
A232: 35 | B232: 0.02279477279 | C232: 0.00488721206 | D232: 0.02279477279 | E232: =G477 -> 2030 | F232: =I429-J429 -> 11291 | H232: 35 | I232: 0.05186657167 | J232: 0.05186657167
A233: 36 | B233: 0.0198990199 | C233: 0.004266361017 | D233: 0.0198990199 | F233: =AVERAGE(F231:F232) -> 11620.5 | G233: This should be between 11K and 12K. | H233: 36 | I233: 0.05511383489 | J233: 0.05511383489
A234: 37 | B234: 0.01882239382 | C234: 0.004035531783 | D234: 0.01882239382 | H234: 37 | I234: 0.05007724807 | J234: 0.05007724807
A235: 38 | B235: 0.01551826552 | C235: 0.003327124823 | D235: 0.01551826552 | E235: Baseline joiners implied: | H235: 38 | I235: 0.04804605514 | J235: 0.04804605514
A236: 39 | B236: 0.01592664093 | C236: 0.003414680739 | D236: 0.01592664093 | E236: =SUM(B218:B227)*L224 -> 13827.98838 | F236: Ages 30 and below | H236: 39 | I236: 0.0401416635 | J236: 0.0401416635
A237: 40 | B237: 0.01548114048 | C237: 0.003319165194 | D237: 0.01548114048 | E237: =SUM(B228:B261)*L224 -> 11961.02325 | F237: Ages 31 and above | H237: 40 | I237: 0.04089765955 | J237: 0.04089765955
A238: 41 | B238: 0.01273388773 | C238: 0.002730152666 | D238: 0.01273388773 | E238: =SUM(E236:E237) -> 25789.01164 | H238: 41 | I238: 0.03463006902 | J238: 0.03463006902
A239: 42 | B239: 0.01451588952 | C239: 0.003112214846 | D239: 0.01451588952 | H239: 42 | I239: 0.02873894498 | J239: 0.02873894498
A240: 43 | B240: 0.01488713989 | C240: 0.003191811134 | D240: 0.01488713989 | H240: 43 | I240: 0.02804963532 | J240: 0.02804963532
A241: 44 | B241: 0.01562964063 | C241: 0.003351003709 | D241: 0.01562964063 | H241: 44 | I241: 0.02554920568 | J241: 0.02554920568
A242: 45 | B242: 0.01566676567 | C242: 0.003358963338 | D242: 0.01566676567 | H242: 45 | I242: 0.02446146809 | J242: 0.02446146809
A243: 46 | B243: 0.01425601426 | C243: 0.003056497445 | D243: 0.01425601426 | H243: 46 | I243: 0.0230536013 | J243: 0.0230536013
A244: 47 | B244: 0.01618651619 | C244: 0.003470398141 | D244: 0.01618651619 | H244: 47 | I244: 0.02326923453 | J244: 0.02326923453
A245: 48 | B245: 0.01551826552 | C245: 0.003327124823 | D245: 0.01551826552 | H245: 48 | I245: 0.02121455948 | J245: 0.02121455948
A246: 49 | B246: 0.01681764182 | C246: 0.00360571183 | D246: 0.01681764182 | H246: 49 | I246: 0.02233151034 | J246: 0.02233151034
A247: 50 | B247: 0.01581526582 | C247: 0.003390801853 | D247: 0.01581526582 | H247: 50 | I247: 0.02327461619 | J247: 0.02327461619
A248: 51 | B248: 0.01462726463 | C248: 0.003136093733 | D248: 0.01462726463 | H248: 51 | I248: 0.02509193781 | J248: 0.02509193781
A249: 52 | B249: 0.01225126225 | C249: 0.002626677492 | D249: 0.01225126225 | H249: 52 | I249: 0.02531186543 | J249: 0.02531186543
A250: 53 | B250: 0.0103950104 | C250: 0.002228696054 | D250: 0.0103950104 | H250: 53 | I250: 0.0206671406 | J250: 0.0206671406
A251: 54 | B251: 0.009652509653 | C251: 0.002069503478 | D251: 0.009652509653 | H251: 54 | I251: 0.03524139967 | J251: 0.03524139967
A252: 55 | B252: 0.008761508762 | C252: 0.001878472388 | D252: 0.008761508762 | H252: 55 | I252: 0.05295588831 | J252: 0.05295588831
A253: 56 | B253: 0.007239382239 | C253: 0.001552127609 | D253: 0.007239382239 | H253: 56 | I253: 0.04812653433 | J253: 0.04812653433
A254: 57 | B254: 0.006051381051 | C254: 0.001297419488 | D254: 0.006051381051 | H254: 57 | I254: 0.05858839945 | J254: 0.05858839945
A255: 58 | B255: 0.005717255717 | C255: 0.001225782829 | D255: 0.005717255717 | H255: 58 | I255: 0.07260029416 | J255: 0.07260029416
A256: 59 | B256: 0.004900504901 | C256: 0.001050670997 | D256: 0.004900504901 | H256: 59 | I256: 0.2276858801 | J256: 0.2276858801
A257: 60 | B257: 0.003601128601 | C257: 0.00077208399 | D257: 0.003601128601 | H257: 60 | I257: 0.3532599401 | J257: 0.3532599401
A258: 61 | B258: 0.003118503119 | C258: 0.0006686088161 | D258: 0.003118503119 | H258: 61 | I258: 0.2161392146 | J258: 0.2161392146
A259: 62 | B259: 0.003452628453 | C259: 0.000740245475 | D259: 0.003452628453 | H259: 62 | I259: 0.2091664525 | J259: 0.2091664525
A260: 63 | B260: 0.00297000297 | C260: 0.000636770301 | D260: 0.00297000297 | H260: 63 | I260: 0.2095131658 | J260: 0.2095131658
A261: 64 | B261: 0.002116127116 | C261: 0.0004536988395 | D261: 0.002116127116 | H261: 64 | I261: 0.7176269369 | J261: 0.7176269369
B262: =SUM(B218:B261) -> 1 | C262: =SUM(C218:C261) -> 1 | I262: =(SUMPRODUCT(I218:I261,B478:B521)+B522)/SUM(B478:B522) -> 0.06360291819 | J262: Overall attrition rate in base year
A292: Annual promotion trends
A307: Notch range | E307: Probability of being promoted | H307: Percentage bonus
B308: =(B410-B310)/100 -> 12999.33 | C308: 1/100 of range | E308: =startyear -> 2021 | H308: =startyear -> 2021
E309: Teachers | F309: Non-teachers | H309: Teachers | I309: Non-teachers
A310: 1 | B310: =SUMIF(Notches!$A$2:$A$500,1,Notches!$B$2:$B$500) -> 125085 | E310: 0 | F310: 0 | H310: 0 | I310: 0
A311: 2 | B311: =B310+B$308 -> 138084.33 | E311: 0.0007714506767 | F311: 0 | H311: 0 | I311: 0
A312: 3 | B312: =B311+B$308 -> 151083.66 | E312: 0 | F312: 0 | H312: 0 | I312: 0
A313: 4 | B313: 164082.99 | E313: 0 | F313: 0 | H313: 0 | I313: 0
A314: 5 | B314: 177082.32 | E314: 0 | F314: 0 | H314: 0 | I314: 0
A315: 6 | B315: 190081.65 | E315: 0 | F315: 0 | H315: 0 | I315: 0
A316: 7 | B316: 203080.98 | E316: 0.003161499851 | F316: 0 | H316: 0.64172 | I316: 0
A317: 8 | B317: 216080.31 | E317: 0.005081172245 | F317: 0 | H317: 0.5964357036 | I317: 0
A318: 9 | B318: 229079.64 | E318: 0.005092228441 | F318: 0 | H318: 0.582582055 | I318: 0
A319: 10 | B319: 242078.97 | E319: 0.006193787288 | F319: 0 | H319: 0.5444884253 | I319: 0
A320: 11 | B320: 255078.3 | E320: 0.006674407277 | F320: 0 | H320: 0.3985345867 | I320: 0
A321: 12 | B321: 268077.63 | E321: 0.003321563485 | F321: 0 | H321: 0.30798798 | I321: 0
A322: 13 | B322: 281076.96 | E322: 0.008586801132 | F322: 0 | H322: 0.233606931 | I322: 0
A323: 14 | B323: 294076.29 | E323: 0.01070371824 | F323: 0.07104213475 | H323: 0.2121632451 | I323: 0
A324: 15 | B324: 307075.62 | E324: 0.01511780288 | F324: 0.04972949433 | H324: 0.1883064945 | I324: 0
A325: 16 | B325: 320074.95 | E325: 0.01647841862 | F325: 0.03552106738 | H325: 0.146648684 | I325: 0
A326: 17 | B326: 333074.28 | E326: 0.0165512081 | F326: 0 | H326: 0.1038914964 | I326: 0
A327: 18 | B327: 346073.61 | E327: 0.01623877614 | F327: 0.03522604753 | H327: 0.08306311784 | I327: 0.1805426
A328: 19 | B328: 359072.94 | E328: 0.01634004657 | F328: 0.04062916178 | H328: 0.08027234165 | I328: 0.1687725695
A329: 20 | B329: 372072.27 | E329: 0.01496346158 | F329: 0.04227296031 | H329: 0.07573807154 | I329: 0.1588577154
A330: 21 | B330: 385071.6 | E330: 0.01567135632 | F330: 0.04732793946 | H330: 0.07738635815 | I330: 0.1403964583
A331: 22 | B331: 398070.93 | E331: 0.01742655823 | F331: 0.04810493734 | H331: 0.07189079952 | I331: 0.1142447403
A332: 23 | B332: 411070.26 | E332: 0.01510634196 | F332: 0.04026993905 | H332: 0.06902461698 | I332: 0.1254999555
A333: 24 | B333: 424069.59 | E333: 0.01154149345 | F333: 0.04071578692 | H333: 0.05849280698 | I333: 0.1510723525
A334: 25 | B334: 437068.92 | E334: 0.009597424342 | F334: 0.04063814791 | H334: 0.06319828017 | I334: 0.1568484065
A335: 26 | B335: 450068.25 | E335: 0.009332817445 | F335: 0.04292554823 | H335: 0.06511398409 | I335: 0.1525274741
A336: 27 | B336: 463067.58 | E336: 0.01068870721 | F336: 0.04207968248 | H336: 0.07087447037 | I336: 0.135832987
A337: 28 | B337: 476066.91 | E337: 0.00880418992 | F337: 0.04084195851 | H337: 0.05142703158 | I337: 0.1170624126
A338: 29 | B338: 489066.24 | E338: 0.01118874678 | F338: 0.03799672256 | H338: 0.04970358571 | I338: 0.1155025716
A339: 30 | B339: 502065.57 | E339: 0.01199767609 | F339: 0.03175297853 | H339: 0.05477226296 | I339: 0.1191624368
A340: 31 | B340: 515064.9 | E340: 0.01283374243 | F340: 0.03125174912 | H340: 0.05786576667 | I340: 0.1241461426
A341: 32 | B341: 528064.23 | E341: 0.01418929547 | F341: 0.03124045425 | H341: 0.0616241 | I341: 0.1350796967
A342: 33 | B342: 541063.56 | E342: 0.009038004717 | F342: 0.03149132624 | H342: 0.0019788 | I342: 0.147210637
A343: 34 | B343: 554062.89 | E343: 0.02118586052 | F343: 0.02968656499 | H343: 0.0019788 | I343: 0.1516408333
A344: 35 | B344: 567062.22 | E344: 0.03283808381 | F344: 0.02474992791 | H344: 0.0019788 | I344: 0.1566002402
A345: 36 | B345: 580061.55 | E345: 0 | F345: 0.02478304482 | H345: 0 | I345: 0.173069278
A346: 37 | B346: 593060.88 | E346: 0 | F346: 0.02436858272 | H346: 0 | I346: 0.1882914237
A347: 38 | B347: 606060.21 | E347: 0 | F347: 0.02602619659 | H347: 0 | I347: 0.1636297953
A348: 39 | B348: 619059.54 | E348: 0 | F348: 0.02715233106 | H348: 0 | I348: 0.156827925
A349: 40 | B349: 632058.87 | E349: 0 | F349: 0.02601741756 | H349: 0 | I349: 0.1627316962
A350: 41 | B350: 645058.2 | E350: 0 | F350: 0.0284168539 | H350: 0 | I350: 0.1584523128
A351: 42 | B351: 658057.53 | E351: 0 | F351: 0.01813841738 | H351: 0 | I351: 0.1113090389
A352: 43 | B352: 671056.86 | E352: 0 | F352: 0.02718332487 | H352: 0 | I352: 0.1009331765
A353: 44 | B353: 684056.19 | E353: 0 | F353: 0.0203809403 | H353: 0 | I353: 0.07241282
A354: 45 | B354: 697055.52 | E354: 0 | F354: 0.02470007996 | H354: 0 | I354: 0.1448721467
A355: 46 | B355: 710054.85 | E355: 0 | F355: 0.02723281832 | H355: 0 | I355: 0.2074858522
A356: 47 | B356: 723054.18 | E356: 0 | F356: 0.02690588313 | H356: 0 | I356: 0.2166378138
A357: 48 | B357: 736053.51 | E357: 0 | F357: 0.02680032628 | H357: 0 | I357: 0.2043988222
... 664 more rows

Sheet Educators
A1: age | B1: isteacher | C1: notch | D1: eds
A2: 21 | B2: 1 | C2: 1 | D2: 4
A3: 21 | B3: 1 | C3: 3 | D3: 5
A4: 21 | B4: 1 | C4: 6 | D4: 9
A5: 21 | B5: 1 | C5: 42 | D5: 8
A6: 21 | B6: 1 | C6: 161 | D6: 1
A7: 21 | B7: 1 | C7: 164 | D7: 17
A8: 22 | B8: 1 | C8: 1 | D8: 5
A9: 22 | B9: 1 | C9: 3 | D9: 13
A10: 22 | B10: 1 | C10: 6 | D10: 37
A11: 22 | B11: 1 | C11: 42 | D11: 10
A12: 22 | B12: 1 | C12: 105 | D12: 2
A13: 22 | B13: 1 | C13: 108 | D13: 13
A14: 22 | B14: 1 | C14: 149 | D14: 1
A15: 22 | B15: 1 | C15: 161 | D15: 66
A16: 22 | B16: 1 | C16: 164 | D16: 491
A17: 23 | B17: 0 | C17: 210 | D17: 1
A18: 23 | B18: 1 | C18: 1 | D18: 13
A19: 23 | B19: 1 | C19: 3 | D19: 17
A20: 23 | B20: 1 | C20: 5 | D20: 1
A21: 23 | B21: 1 | C21: 6 | D21: 37
A22: 23 | B22: 1 | C22: 42 | D22: 34
A23: 23 | B23: 1 | C23: 105 | D23: 7
A24: 23 | B24: 1 | C24: 107 | D24: 1
A25: 23 | B25: 1 | C25: 108 | D25: 38
A26: 23 | B26: 1 | C26: 109 | D26: 1
A27: 23 | B27: 1 | C27: 149 | D27: 1
A28: 23 | B28: 1 | C28: 161 | D28: 152
A29: 23 | B29: 1 | C29: 164 | D29: 2059
A30: 23 | B30: 1 | C30: 166 | D30: 1
A31: 23 | B31: 1 | C31: 167 | D31: 2
A32: 23 | B32: 1 | C32: 168 | D32: 1
A33: 23 | B33: 1 | C33: 190 | D33: 1
A34: 24 | B34: 1 | C34: 1 | D34: 11
A35: 24 | B35: 1 | C35: 3 | D35: 17
A36: 24 | B36: 1 | C36: 5 | D36: 1
A37: 24 | B37: 1 | C37: 6 | D37: 55
A38: 24 | B38: 1 | C38: 42 | D38: 42
A39: 24 | B39: 1 | C39: 72 | D39: 3
A40: 24 | B40: 1 | C40: 78 | D40: 1
A41: 24 | B41: 1 | C41: 95 | D41: 1
A42: 24 | B42: 1 | C42: 105 | D42: 2
A43: 24 | B43: 1 | C43: 108 | D43: 59
A44: 24 | B44: 1 | C44: 109 | D44: 1
A45: 24 | B45: 1 | C45: 110 | D45: 1
A46: 24 | B46: 1 | C46: 149 | D46: 7
A47: 24 | B47: 1 | C47: 160 | D47: 7
A48: 24 | B48: 1 | C48: 161 | D48: 259
A49: 24 | B49: 1 | C49: 164 | D49: 4076
A50: 24 | B50: 1 | C50: 165 | D50: 1
A51: 24 | B51: 1 | C51: 166 | D51: 2
A52: 24 | B52: 1 | C52: 167 | D52: 16
A53: 24 | B53: 1 | C53: 168 | D53: 1
A54: 24 | B54: 1 | C54: 176 | D54: 1
A55: 24 | B55: 1 | C55: 187 | D55: 1
A56: 24 | B56: 1 | C56: 190 | D56: 14
A57: 25 | B57: 0 | C57: 210 | D57: 1
A58: 25 | B58: 1 | C58: 1 | D58: 9
A59: 25 | B59: 1 | C59: 3 | D59: 11
A60: 25 | B60: 1 | C60: 6 | D60: 49
A61: 25 | B61: 1 | C61: 42 | D61: 67
A62: 25 | B62: 1 | C62: 92 | D62: 1
A63: 25 | B63: 1 | C63: 105 | D63: 7
A64: 25 | B64: 1 | C64: 106 | D64: 1
A65: 25 | B65: 1 | C65: 108 | D65: 84
A66: 25 | B66: 1 | C66: 109 | D66: 2
A67: 25 | B67: 1 | C67: 111 | D67: 3
A68: 25 | B68: 1 | C68: 149 | D68: 23
A69: 25 | B69: 1 | C69: 160 | D69: 29
A70: 25 | B70: 1 | C70: 161 | D70: 250
A71: 25 | B71: 1 | C71: 164 | D71: 5731
A72: 25 | B72: 1 | C72: 165 | D72: 1
A73: 25 | B73: 1 | C73: 166 | D73: 8
A74: 25 | B74: 1 | C74: 167 | D74: 242
A75: 25 | B75: 1 | C75: 168 | D75: 8
A76: 25 | B76: 1 | C76: 169 | D76: 5
A77: 25 | B77: 1 | C77: 170 | D77: 1
A78: 25 | B78: 1 | C78: 172 | D78: 6
A79: 25 | B79: 1 | C79: 174 | D79: 1
A80: 25 | B80: 1 | C80: 176 | D80: 2
A81: 25 | B81: 1 | C81: 190 | D81: 32
A82: 25 | B82: 1 | C82: 223 | D82: 1
A83: 26 | B83: 0 | C83: 210 | D83: 12
A84: 26 | B84: 1 | C84: 1 | D84: 13
A85: 26 | B85: 1 | C85: 3 | D85: 6
A86: 26 | B86: 1 | C86: 6 | D86: 62
A87: 26 | B87: 1 | C87: 9 | D87: 1
A88: 26 | B88: 1 | C88: 42 | D88: 86
A89: 26 | B89: 1 | C89: 69 | D89: 1
A90: 26 | B90: 1 | C90: 72 | D90: 6
A91: 26 | B91: 1 | C91: 83 | D91: 1
A92: 26 | B92: 1 | C92: 105 | D92: 8
A93: 26 | B93: 1 | C93: 108 | D93: 87
A94: 26 | B94: 1 | C94: 111 | D94: 8
A95: 26 | B95: 1 | C95: 135 | D95: 3
A96: 26 | B96: 1 | C96: 149 | D96: 27
A97: 26 | B97: 1 | C97: 160 | D97: 36
A98: 26 | B98: 1 | C98: 161 | D98: 247
A99: 26 | B99: 1 | C99: 164 | D99: 6403
A100: 26 | B100: 1 | C100: 165 | D100: 1
A101: 26 | B101: 1 | C101: 166 | D101: 12
A102: 26 | B102: 1 | C102: 167 | D102: 1155
A103: 26 | B103: 1 | C103: 168 | D103: 9
A104: 26 | B104: 1 | C104: 169 | D104: 18
A105: 26 | B105: 1 | C105: 170 | D105: 13
A106: 26 | B106: 1 | C106: 172 | D106: 19
A107: 26 | B107: 1 | C107: 174 | D107: 5
A108: 26 | B108: 1 | C108: 176 | D108: 2
A109: 26 | B109: 1 | C109: 187 | D109: 1
A110: 26 | B110: 1 | C110: 190 | D110: 33
A111: 26 | B111: 1 | C111: 223 | D111: 1
A112: 27 | B112: 0 | C112: 210 | D112: 47
A113: 27 | B113: 0 | C113: 213 | D113: 1
A114: 27 | B114: 0 | C114: 354 | D114: 1
A115: 27 | B115: 1 | C115: 1 | D115: 11
A116: 27 | B116: 1 | C116: 3 | D116: 9
A117: 27 | B117: 1 | C117: 5 | D117: 2
A118: 27 | B118: 1 | C118: 6 | D118: 32
A119: 27 | B119: 1 | C119: 9 | D119: 2
A120: 27 | B120: 1 | C120: 42 | D120: 88
A121: 27 | B121: 1 | C121: 72 | D121: 3
A122: 27 | B122: 1 | C122: 85 | D122: 1
A123: 27 | B123: 1 | C123: 95 | D123: 1
A124: 27 | B124: 1 | C124: 105 | D124: 10
A125: 27 | B125: 1 | C125: 108 | D125: 84
A126: 27 | B126: 1 | C126: 109 | D126: 2
A127: 27 | B127: 1 | C127: 111 | D127: 26
A128: 27 | B128: 1 | C128: 116 | D128: 1
A129: 27 | B129: 1 | C129: 135 | D129: 1
A130: 27 | B130: 1 | C130: 149 | D130: 41
A131: 27 | B131: 1 | C131: 160 | D131: 32
A132: 27 | B132: 1 | C132: 161 | D132: 226
A133: 27 | B133: 1 | C133: 163 | D133: 1
A134: 27 | B134: 1 | C134: 164 | D134: 6160
A135: 27 | B135: 1 | C135: 165 | D135: 3
A136: 27 | B136: 1 | C136: 166 | D136: 19
A137: 27 | B137: 1 | C137: 167 | D137: 2336
A138: 27 | B138: 1 | C138: 168 | D138: 45
A139: 27 | B139: 1 | C139: 169 | D139: 148
A140: 27 | B140: 1 | C140: 170 | D140: 177
A141: 27 | B141: 1 | C141: 171 | D141: 6
A142: 27 | B142: 1 | C142: 172 | D142: 145
A143: 27 | B143: 1 | C143: 173 | D143: 1
A144: 27 | B144: 1 | C144: 174 | D144: 29
A145: 27 | B145: 1 | C145: 176 | D145: 3
A146: 27 | B146: 1 | C146: 181 | D146: 1
A147: 27 | B147: 1 | C147: 187 | D147: 1
A148: 27 | B148: 1 | C148: 190 | D148: 59
A149: 27 | B149: 1 | C149: 193 | D149: 5
A150: 27 | B150: 1 | C150: 217 | D150: 1
A151: 27 | B151: 1 | C151: 352 | D151: 1
A152: 28 | B152: 0 | C152: 210 | D152: 114
A153: 28 | B153: 0 | C153: 211 | D153: 1
A154: 28 | B154: 0 | C154: 213 | D154: 12
A155: 28 | B155: 0 | C155: 216 | D155: 2
A156: 28 | B156: 0 | C156: 244 | D156: 5
A157: 28 | B157: 0 | C157: 267 | D157: 2
A158: 28 | B158: 0 | C158: 270 | D158: 1
A159: 28 | B159: 0 | C159: 288 | D159: 1
A160: 28 | B160: 0 | C160: 318 | D160: 1
A161: 28 | B161: 1 | C161: 1 | D161: 11
A162: 28 | B162: 1 | C162: 3 | D162: 10
A163: 28 | B163: 1 | C163: 6 | D163: 29
A164: 28 | B164: 1 | C164: 9 | D164: 2
A165: 28 | B165: 1 | C165: 42 | D165: 100
A166: 28 | B166: 1 | C166: 72 | D166: 1
A167: 28 | B167: 1 | C167: 73 | D167: 1
A168: 28 | B168: 1 | C168: 75 | D168: 1
A169: 28 | B169: 1 | C169: 92 | D169: 1
A170: 28 | B170: 1 | C170: 105 | D170: 8
A171: 28 | B171: 1 | C171: 108 | D171: 97
A172: 28 | B172: 1 | C172: 109 | D172: 1
A173: 28 | B173: 1 | C173: 110 | D173: 2
A174: 28 | B174: 1 | C174: 111 | D174: 24
A175: 28 | B175: 1 | C175: 114 | D175: 3
A176: 28 | B176: 1 | C176: 115 | D176: 1
A177: 28 | B177: 1 | C177: 116 | D177: 8
A178: 28 | B178: 1 | C178: 118 | D178: 2
A179: 28 | B179: 1 | C179: 119 | D179: 1
A180: 28 | B180: 1 | C180: 135 | D180: 1
A181: 28 | B181: 1 | C181: 149 | D181: 31
A182: 28 | B182: 1 | C182: 160 | D182: 17
A183: 28 | B183: 1 | C183: 161 | D183: 197
A184: 28 | B184: 1 | C184: 163 | D184: 1
A185: 28 | B185: 1 | C185: 164 | D185: 5244
A186: 28 | B186: 1 | C186: 165 | D186: 8
A187: 28 | B187: 1 | C187: 166 | D187: 28
A188: 28 | B188: 1 | C188: 167 | D188: 2323
A189: 28 | B189: 1 | C189: 168 | D189: 74
A190: 28 | B190: 1 | C190: 169 | D190: 214
A191: 28 | B191: 1 | C191: 170 | D191: 425
A192: 28 | B192: 1 | C192: 171 | D192: 26
A193: 28 | B193: 1 | C193: 172 | D193: 1067
A194: 28 | B194: 1 | C194: 173 | D194: 3
A195: 28 | B195: 1 | C195: 174 | D195: 238
A196: 28 | B196: 1 | C196: 176 | D196: 15
A197: 28 | B197: 1 | C197: 185 | D197: 1
A198: 28 | B198: 1 | C198: 190 | D198: 33
A199: 28 | B199: 1 | C199: 192 | D199: 1
A200: 28 | B200: 1 | C200: 193 | D200: 11
... 9912 more rows

Sheet Notches
A1: notchcode | B1: notchvalue
A2: 1 | B2: 125085
A3: 2 | B3: 126720
A4: 3 | B4: 126960
A5: 4 | B5: 127998
A6: 5 | B6: 128622
A7: 6 | B7: 129255
A8: 7 | B8: 129918
A9: 8 | B9: 130554
A10: 9 | B10: 131193
A11: 10 | B11: 131844
A12: 11 | B12: 132513
A13: 12 | B13: 133173
A14: 13 | B14: 133821
A15: 14 | B15: 134475
A16: 15 | B16: 135171
A17: 16 | B17: 135852
A18: 17 | B18: 136491
A19: 18 | B19: 137208
A20: 19 | B20: 137889
A21: 20 | B21: 138600
A22: 21 | B22: 139266
A23: 22 | B23: 139959
A24: 23 | B24: 140679
A25: 24 | B25: 141357
A26: 25 | B26: 142059
A27: 26 | B27: 142770
A28: 27 | B28: 143478
A29: 28 | B29: 144186
A30: 29 | B30: 144912
A31: 30 | B31: 145629
A32: 31 | B32: 146349
A33: 32 | B33: 147105
A34: 33 | B34: 147813
A35: 34 | B35: 148542
A36: 35 | B36: 149313
A37: 36 | B37: 150075
A38: 37 | B38: 150771
A39: 38 | B39: 151572
A40: 39 | B40: 152325
A41: 40 | B41: 153072
A42: 41 | B42: 153846
A43: 42 | B43: 154596
A44: 43 | B44: 155367
A45: 44 | B45: 156159
A46: 45 | B46: 156915
A47: 46 | B47: 157713
A48: 47 | B48: 158502
A49: 48 | B49: 159291
A50: 49 | B50: 160080
A51: 50 | B51: 160863
A52: 51 | B52: 161679
A53: 52 | B53: 162663
A54: 53 | B54: 163275
A55: 54 | B55: 164283
A56: 55 | B56: 165102
A57: 56 | B57: 165930
A58: 57 | B58: 166746
A59: 58 | B59: 167613
A60: 59 | B60: 168420
A61: 60 | B61: 169275
A62: 61 | B62: 170127
A63: 62 | B63: 170949
A64: 63 | B64: 171813
A65: 64 | B65: 172680
A66: 65 | B66: 173514
A67: 66 | B67: 174378
A68: 67 | B68: 175269
A69: 68 | B69: 176142
A70: 69 | B70: 176994
A71: 70 | B71: 177897
A72: 71 | B72: 178785
A73: 72 | B73: 179646
A74: 73 | B74: 180564
A75: 74 | B75: 181491
A76: 75 | B76: 182340
A77: 76 | B77: 183276
A78: 77 | B78: 184212
A79: 78 | B79: 185127
A80: 79 | B80: 186024
A81: 80 | B81: 186975
A82: 81 | B82: 187905
A83: 82 | B83: 188841
A84: 83 | B84: 189780
A85: 84 | B85: 190728
A86: 85 | B86: 191673
A87: 86 | B87: 192642
A88: 87 | B88: 193590
A89: 88 | B89: 194559
A90: 89 | B90: 195531
A91: 90 | B91: 196503
A92: 91 | B92: 197478
A93: 92 | B93: 198483
A94: 93 | B94: 199452
A95: 94 | B95: 200484
A96: 95 | B96: 201459
A97: 96 | B97: 202482
A98: 97 | B98: 203490
A99: 98 | B99: 204507
A100: 99 | B100: 205518
A101: 100 | B101: 206532
A102: 101 | B102: 207576
A103: 102 | B103: 208590
A104: 103 | B104: 209631
A105: 104 | B105: 210675
A106: 105 | B106: 211719
A107: 106 | B107: 212793
A108: 107 | B108: 213834
A109: 108 | B109: 214908
A110: 109 | B110: 215985
A111: 110 | B111: 217062
A112: 111 | B112: 218133
A113: 112 | B113: 219255
A114: 113 | B114: 220317
A115: 114 | B115: 221415
A116: 115 | B116: 222543
A117: 116 | B117: 223638
A118: 117 | B118: 224736
A119: 118 | B119: 225876
A120: 119 | B120: 226992
A121: 120 | B121: 228144
A122: 121 | B122: 229263
A123: 122 | B123: 230409
A124: 123 | B124: 231567
A125: 124 | B125: 232707
A126: 125 | B126: 233865
A127: 126 | B127: 235023
A128: 127 | B128: 236199
A129: 128 | B129: 237387
A130: 129 | B130: 238548
A131: 130 | B131: 239790
A132: 131 | B132: 240948
A133: 132 | B133: 242160
A134: 133 | B134: 243387
A135: 134 | B135: 244593
A136: 135 | B136: 245793
A137: 136 | B137: 247029
A138: 137 | B138: 248262
A139: 138 | B139: 249516
A140: 139 | B140: 250734
A141: 140 | B141: 251997
A142: 141 | B142: 253260
A143: 142 | B143: 254532
A144: 143 | B144: 255777
A145: 144 | B145: 257070
A146: 145 | B146: 258351
A147: 146 | B147: 259647
A148: 147 | B148: 260925
A149: 148 | B149: 262236
A150: 149 | B150: 263541
A151: 150 | B151: 264855
A152: 151 | B152: 266169
A153: 152 | B153: 267768
A154: 153 | B154: 268827
A155: 154 | B155: 270432
A156: 155 | B156: 271785
A157: 156 | B157: 273150
A158: 157 | B158: 274488
A159: 158 | B159: 275871
A160: 159 | B160: 277248
A161: 160 | B161: 278640
A162: 161 | B162: 280008
A163: 162 | B163: 281424
A164: 163 | B164: 282819
A165: 164 | B165: 284238
A166: 165 | B166: 285645
A167: 166 | B167: 287067
A168: 167 | B168: 288501
A169: 168 | B169: 289932
A170: 169 | B170: 291372
A171: 170 | B171: 292854
A172: 171 | B172: 294282
A173: 172 | B173: 295773
A174: 173 | B174: 297246
A175: 174 | B175: 298746
A176: 175 | B176: 300210
A177: 176 | B177: 301719
A178: 177 | B178: 303228
A179: 178 | B179: 304746
A180: 179 | B180: 306246
A181: 180 | B181: 307791
A182: 181 | B182: 309318
A183: 182 | B183: 310869
A184: 183 | B184: 312408
A185: 184 | B185: 313977
A186: 185 | B186: 315531
A187: 186 | B187: 317106
A188: 187 | B188: 318687
A189: 188 | B189: 320271
A190: 189 | B190: 321864
A191: 190 | B191: 323004
A192: 191 | B192: 323661
A193: 192 | B193: 325074
A194: 193 | B194: 326895
A195: 194 | B195: 327849
A196: 195 | B196: 328515
A197: 196 | B197: 330156
A198: 197 | B198: 331797
A199: 198 | B199: 333444
A200: 199 | B200: 335109
... 292 more rows

Sheet Log
A1: Year | B1: Value | C1: Description
A2: 2022 | B2: 405469 | C2: Total educators before attrition calculation
A3: 2022 | B3: 19721 | C3: Teachers departing
A4: 2022 | B4: 6045 | C4: Non-teachers departing
A5: 2022 | B5: 379703 | C5: Total educators after attrition calculation
A6: 2022 | B6: 3139 | C6: Non-teachers promoted to higher non-teacher positions
A7: 2022 | B7: 14.6 | C7: Average promotion bonus of promoted non-teachers (percentage)
A8: 2022 | B8: 6045 | C8: Teachers promoted to non-teacher positions
A9: 2022 | B9: 16.7 | C9: Average promotion bonus of promoted teachers (percentage)
A10: 2022 | B10: 379701 | C10: Total educators progressing up notches
A11: 2022 | B11: 25766 | C11: New teachers entering the system
A12: 2022 | B12: 405469 | C12: Total educators after joining calculation
A13: 2023 | B13: 405469 | C13: Total educators before attrition calculation
A14: 2023 | B14: 20293 | C14: Teachers departing
A15: 2023 | B15: 6418 | C15: Non-teachers departing
A16: 2023 | B16: 378763 | C16: Total educators after attrition calculation
A17: 2023 | B17: 3357 | C17: Non-teachers promoted to higher non-teacher positions
A18: 2023 | B18: 14.5 | C18: Average promotion bonus of promoted non-teachers (percentage)
A19: 2023 | B19: 6413 | C19: Teachers promoted to non-teacher positions
A20: 2023 | B20: 16.7 | C20: Average promotion bonus of promoted teachers (percentage)
A21: 2023 | B21: 378761 | C21: Total educators progressing up notches
A22: 2023 | B22: 26706 | C22: New teachers entering the system
A23: 2023 | B23: 405469 | C23: Total educators after joining calculation
A24: 2024 | B24: 405469 | C24: Total educators before attrition calculation
A25: 2024 | B25: 20900 | C25: Teachers departing
A26: 2024 | B26: 6766 | C26: Non-teachers departing
A27: 2024 | B27: 377807 | C27: Total educators after attrition calculation
A28: 2024 | B28: 3564 | C28: Non-teachers promoted to higher non-teacher positions
A29: 2024 | B29: 14.3 | C29: Average promotion bonus of promoted non-teachers (percentage)
A30: 2024 | B30: 6762 | C30: Teachers promoted to non-teacher positions
A31: 2024 | B31: 16.6 | C31: Average promotion bonus of promoted teachers (percentage)
A32: 2024 | B32: 377804 | C32: Total educators progressing up notches
A33: 2024 | B33: 27662 | C33: New teachers entering the system
A34: 2024 | B34: 405469 | C34: Total educators after joining calculation
A35: 2025 | B35: 405469 | C35: Total educators before attrition calculation
A36: 2025 | B36: 21458 | C36: Teachers departing
A37: 2025 | B37: 7178 | C37: Non-teachers departing
A38: 2025 | B38: 376842 | C38: Total educators after attrition calculation
A39: 2025 | B39: 3799 | C39: Non-teachers promoted to higher non-teacher positions
A40: 2025 | B40: 14.1 | C40: Average promotion bonus of promoted non-teachers (percentage)
A41: 2025 | B41: 7169 | C41: Teachers promoted to non-teacher positions
A42: 2025 | B42: 16.7 | C42: Average promotion bonus of promoted teachers (percentage)
A43: 2025 | B43: 376840 | C43: Total educators progressing up notches
A44: 2025 | B44: 28627 | C44: New teachers entering the system
A45: 2025 | B45: 405469 | C45: Total educators after joining calculation
A46: 2026 | B46: 405469 | C46: Total educators before attrition calculation
A47: 2026 | B47: 21887 | C47: Teachers departing
A48: 2026 | B48: 7529 | C48: Non-teachers departing
A49: 2026 | B49: 376062 | C49: Total educators after attrition calculation
A50: 2026 | B50: 3998 | C50: Non-teachers promoted to higher non-teacher positions
A51: 2026 | B51: 13.9 | C51: Average promotion bonus of promoted non-teachers (percentage)
A52: 2026 | B52: 7520 | C52: Teachers promoted to non-teacher positions
A53: 2026 | B53: 16.5 | C53: Average promotion bonus of promoted teachers (percentage)
A54: 2026 | B54: 376059 | C54: Total educators progressing up notches
A55: 2026 | B55: 29407 | C55: New teachers entering the system
A56: 2026 | B56: 405469 | C56: Total educators after joining calculation
A57: 2027 | B57: 405469 | C57: Total educators before attrition calculation
A58: 2027 | B58: 22269 | C58: Teachers departing
A59: 2027 | B59: 7894 | C59: Non-teachers departing
A60: 2027 | B60: 375314 | C60: Total educators after attrition calculation
A61: 2027 | B61: 4216 | C61: Non-teachers promoted to higher non-teacher positions
A62: 2027 | B62: 13.8 | C62: Average promotion bonus of promoted non-teachers (percentage)
A63: 2027 | B63: 7886 | C63: Teachers promoted to non-teacher positions
A64: 2027 | B64: 16.6 | C64: Average promotion bonus of promoted teachers (percentage)
A65: 2027 | B65: 375309 | C65: Total educators progressing up notches
A66: 2027 | B66: 30155 | C66: New teachers entering the system
A67: 2027 | B67: 405469 | C67: Total educators after joining calculation
A68: 2028 | B68: 405469 | C68: Total educators before attrition calculation
A69: 2028 | B69: 22680 | C69: Teachers departing
A70: 2028 | B70: 8270 | C70: Non-teachers departing
A71: 2028 | B71: 374521 | C71: Total educators after attrition calculation
A72: 2028 | B72: 4390 | C72: Non-teachers promoted to higher non-teacher positions
A73: 2028 | B73: 13.8 | C73: Average promotion bonus of promoted non-teachers (percentage)
A74: 2028 | B74: 8268 | C74: Teachers promoted to non-teacher positions
A75: 2028 | B75: 16.6 | C75: Average promotion bonus of promoted teachers (percentage)
A76: 2028 | B76: 374518 | C76: Total educators progressing up notches
A77: 2028 | B77: 30948 | C77: New teachers entering the system
A78: 2028 | B78: 405469 | C78: Total educators after joining calculation
A79: 2029 | B79: 405469 | C79: Total educators before attrition calculation
A80: 2029 | B80: 22913 | C80: Teachers departing
A81: 2029 | B81: 8581 | C81: Non-teachers departing
A82: 2029 | B82: 373981 | C82: Total educators after attrition calculation
A83: 2029 | B83: 4563 | C83: Non-teachers promoted to higher non-teacher positions
A84: 2029 | B84: 13.7 | C84: Average promotion bonus of promoted non-teachers (percentage)
A85: 2029 | B85: 8575 | C85: Teachers promoted to non-teacher positions
A86: 2029 | B86: 16.1 | C86: Average promotion bonus of promoted teachers (percentage)
A87: 2029 | B87: 373979 | C87: Total educators progressing up notches
A88: 2029 | B88: 31488 | C88: New teachers entering the system
A89: 2029 | B89: 405469 | C89: Total educators after joining calculation
A90: 2030 | B90: 405469 | C90: Total educators before attrition calculation
A91: 2030 | B91: 22965 | C91: Teachers departing
A92: 2030 | B92: 8775 | C92: Non-teachers departing
A93: 2030 | B93: 373733 | C93: Total educators after attrition calculation
A94: 2030 | B94: 4684 | C94: Non-teachers promoted to higher non-teacher positions
A95: 2030 | B95: 13.8 | C95: Average promotion bonus of promoted non-teachers (percentage)
A96: 2030 | B96: 8771 | C96: Teachers promoted to non-teacher positions
A97: 2030 | B97: 16.1 | C97: Average promotion bonus of promoted teachers (percentage)
A98: 2030 | B98: 373731 | C98: Total educators progressing up notches
A99: 2030 | B99: 31736 | C99: New teachers entering the system
A100: 2030 | B100: 405469 | C100: Total educators after joining calculation
A101: 2031 | B101: 405469 | C101: Total educators before attrition calculation
A102: 2031 | B102: 22869 | C102: Teachers departing
A103: 2031 | B103: 8853 | C103: Non-teachers departing
A104: 2031 | B104: 373750 | C104: Total educators after attrition calculation
A105: 2031 | B105: 4717 | C105: Non-teachers promoted to higher non-teacher positions
A106: 2031 | B106: 13.9 | C106: Average promotion bonus of promoted non-teachers (percentage)
A107: 2031 | B107: 8850 | C107: Teachers promoted to non-teacher positions
A108: 2031 | B108: 16 | C108: Average promotion bonus of promoted teachers (percentage)
A109: 2031 | B109: 373748 | C109: Total educators progressing up notches
A110: 2031 | B110: 31719 | C110: New teachers entering the system
A111: 2031 | B111: 405469 | C111: Total educators after joining calculation
A112: 2032 | B112: 405469 | C112: Total educators before attrition calculation
A113: 2032 | B113: 22641 | C113: Teachers departing
A114: 2032 | B114: 8818 | C114: Non-teachers departing
A115: 2032 | B115: 374014 | C115: Total educators after attrition calculation
A116: 2032 | B116: 4730 | C116: Non-teachers promoted to higher non-teacher positions
A117: 2032 | B117: 13.9 | C117: Average promotion bonus of promoted non-teachers (percentage)
A118: 2032 | B118: 8814 | C118: Teachers promoted to non-teacher positions
A119: 2032 | B119: 15.7 | C119: Average promotion bonus of promoted teachers (percentage)
A120: 2032 | B120: 374009 | C120: Total educators progressing up notches
A121: 2032 | B121: 31455 | C121: New teachers entering the system
A122: 2032 | B122: 405469 | C122: Total educators after joining calculation
A123: 2033 | B123: 405469 | C123: Total educators before attrition calculation
A124: 2033 | B124: 22427 | C124: Teachers departing
A125: 2033 | B125: 8716 | C125: Non-teachers departing
A126: 2033 | B126: 374334 | C126: Total educators after attrition calculation
A127: 2033 | B127: 4698 | C127: Non-teachers promoted to higher non-teacher positions
A128: 2033 | B128: 13.9 | C128: Average promotion bonus of promoted non-teachers (percentage)
A129: 2033 | B129: 8708 | C129: Teachers promoted to non-teacher positions
A130: 2033 | B130: 15.6 | C130: Average promotion bonus of promoted teachers (percentage)
A131: 2033 | B131: 374330 | C131: Total educators progressing up notches
A132: 2033 | B132: 31135 | C132: New teachers entering the system
A133: 2033 | B133: 405469 | C133: Total educators after joining calculation
A134: 2034 | B134: 405469 | C134: Total educators before attrition calculation
A135: 2034 | B135: 21939 | C135: Teachers departing
A136: 2034 | B136: 8311 | C136: Non-teachers departing
A137: 2034 | B137: 375223 | C137: Total educators after attrition calculation
A138: 2034 | B138: 4495 | C138: Non-teachers promoted to higher non-teacher positions
A139: 2034 | B139: 14 | C139: Average promotion bonus of promoted non-teachers (percentage)
A140: 2034 | B140: 8307 | C140: Teachers promoted to non-teacher positions
A141: 2034 | B141: 15.6 | C141: Average promotion bonus of promoted teachers (percentage)
A142: 2034 | B142: 375219 | C142: Total educators progressing up notches
A143: 2034 | B143: 30246 | C143: New teachers entering the system
A144: 2034 | B144: 405469 | C144: Total educators after joining calculation
A145: 2035 | B145: 405469 | C145: Total educators before attrition calculation
A146: 2035 | B146: 21520 | C146: Teachers departing
A147: 2035 | B147: 7896 | C147: Non-teachers departing
A148: 2035 | B148: 376059 | C148: Total educators after attrition calculation
A149: 2035 | B149: 4311 | C149: Non-teachers promoted to higher non-teacher positions
A150: 2035 | B150: 13.9 | C150: Average promotion bonus of promoted non-teachers (percentage)
A151: 2035 | B151: 7890 | C151: Teachers promoted to non-teacher positions
A152: 2035 | B152: 15.4 | C152: Average promotion bonus of promoted teachers (percentage)
A153: 2035 | B153: 376054 | C153: Total educators progressing up notches
A154: 2035 | B154: 29410 | C154: New teachers entering the system
A155: 2035 | B155: 405469 | C155: Total educators after joining calculation
A156: 2036 | B156: 405469 | C156: Total educators before attrition calculation
A157: 2036 | B157: 20988 | C157: Teachers departing
A158: 2036 | B158: 7375 | C158: Non-teachers departing
A159: 2036 | B159: 377109 | C159: Total educators after attrition calculation
A160: 2036 | B160: 4055 | C160: Non-teachers promoted to higher non-teacher positions
A161: 2036 | B161: 13.8 | C161: Average promotion bonus of promoted non-teachers (percentage)
A162: 2036 | B162: 7372 | C162: Teachers promoted to non-teacher positions
A163: 2036 | B163: 15.3 | C163: Average promotion bonus of promoted teachers (percentage)
A164: 2036 | B164: 377103 | C164: Total educators progressing up notches
A165: 2036 | B165: 28360 | C165: New teachers entering the system
A166: 2036 | B166: 405469 | C166: Total educators after joining calculation
A167: 2037 | B167: 405469 | C167: Total educators before attrition calculation
A168: 2037 | B168: 20602 | C168: Teachers departing
A169: 2037 | B169: 6923 | C169: Non-teachers departing
A170: 2037 | B170: 377945 | C170: Total educators after attrition calculation
A171: 2037 | B171: 3817 | C171: Non-teachers promoted to higher non-teacher positions
A172: 2037 | B172: 13.8 | C172: Average promotion bonus of promoted non-teachers (percentage)
A173: 2037 | B173: 6922 | C173: Teachers promoted to non-teacher positions
A174: 2037 | B174: 15.1 | C174: Average promotion bonus of promoted teachers (percentage)
A175: 2037 | B175: 377940 | C175: Total educators progressing up notches
A176: 2037 | B176: 27524 | C176: New teachers entering the system
A177: 2037 | B177: 405469 | C177: Total educators after joining calculation
A178: 2038 | B178: 405469 | C178: Total educators before attrition calculation
A179: 2038 | B179: 20179 | C179: Teachers departing
A180: 2038 | B180: 6406 | C180: Non-teachers departing
A181: 2038 | B181: 378888 | C181: Total educators after attrition calculation
A182: 2038 | B182: 3545 | C182: Non-teachers promoted to higher non-teacher positions
A183: 2038 | B183: 13.7 | C183: Average promotion bonus of promoted non-teachers (percentage)
A184: 2038 | B184: 6402 | C184: Teachers promoted to non-teacher positions
A185: 2038 | B185: 14.9 | C185: Average promotion bonus of promoted teachers (percentage)
A186: 2038 | B186: 378883 | C186: Total educators progressing up notches
A187: 2038 | B187: 26581 | C187: New teachers entering the system
A188: 2038 | B188: 405469 | C188: Total educators after joining calculation
A189: 2039 | B189: 405469 | C189: Total educators before attrition calculation
A190: 2039 | B190: 19854 | C190: Teachers departing
A191: 2039 | B191: 5989 | C191: Non-teachers departing
A192: 2039 | B192: 379630 | C192: Total educators after attrition calculation
A193: 2039 | B193: 3309 | C193: Non-teachers promoted to higher non-teacher positions
A194: 2039 | B194: 13.6 | C194: Average promotion bonus of promoted non-teachers (percentage)
A195: 2039 | B195: 5985 | C195: Teachers promoted to non-teacher positions
A196: 2039 | B196: 14.7 | C196: Average promotion bonus of promoted teachers (percentage)
A197: 2039 | B197: 379626 | C197: Total educators progressing up notches
A198: 2039 | B198: 25839 | C198: New teachers entering the system
A199: 2039 | B199: 405469 | C199: Total educators after joining calculation
A200: 2040 | B200: 405469 | C200: Total educators before attrition calculation
... 351 more rows
